[Event "Titled Tuesday Blitz March 21 Late 2023"]
[White "Vlassov, Nikolai"]
[Black "Sarana, Alexey"]
[WhiteFideId "4103360"]
[BlackFideId "24133795"]
[WhiteElo "2324"]
[BlackElo "2714"]
[Result "1/2-1/2"]
[Round "04"]
[TimeControl "180+2"]
[Date "2023.03.21"]
[WhiteClock "0:00:06"]
[BlackClock "0:00:03"]

1. e4 {[%clk 0:03:00]}  c5 {[%clk 0:03:00]} 2. c3 {[%clk 0:03:00]}  d5 {[%clk 0:03:01]} 3. exd5 {[%clk 0:03:00]}  Qxd5 {[%clk 0:03:02]} 4. d4 {[%clk 0:03:00]}  Nc6 {[%clk 0:03:01]} 5. Nf3 {[%clk 0:03:00]}  Nf6 {[%clk 0:03:00]} 6. dxc5 {[%clk 0:02:57]}  Qxc5 {[%clk 0:02:58]} 7. Be3 {[%clk 0:02:56]}  Qa5 {[%clk 0:02:58]} 8. Na3 {[%clk 0:02:55]}  e5 {[%clk 0:02:54]} 9. Nc4 {[%clk 0:02:55]}  Qc7 {[%clk 0:02:54]} 10. Be2 {[%clk 0:02:54]}  Be7 {[%clk 0:02:52]} 11. O-O {[%clk 0:02:53]}  O-O {[%clk 0:02:53]} 12. Qb3 {[%clk 0:02:44]}  Be6 {[%clk 0:02:51]} 13. Ng5 {[%clk 0:02:43]}  Bd5 {[%clk 0:02:49]} 14. Qc2 {[%clk 0:02:29]}  h6 {[%clk 0:02:46]} 15. Nf3 {[%clk 0:02:20]}  Rfd8 {[%clk 0:02:41]} 16. Rad1 {[%clk 0:02:19]}  Ng4 {[%clk 0:02:37]} 17. h3 {[%clk 0:02:15]}  Nf6 {[%clk 0:02:29]} 18. a4 {[%clk 0:02:01]}  Rac8 {[%clk 0:02:28]} 19. Rd2 {[%clk 0:01:57]}  e4 {[%clk 0:02:17]} 20. Nh2 {[%clk 0:01:45]}  Be6 {[%clk 0:02:01]} 21. Rfd1 {[%clk 0:01:42]}  Rxd2 {[%clk 0:02:01]} 22. Rxd2 {[%clk 0:01:42]}  b6 {[%clk 0:02:01]} 23. Na3 {[%clk 0:01:28]}  Ne5 {[%clk 0:01:56]} 24. Nb5 {[%clk 0:01:24]}  Qb7 {[%clk 0:01:53]} 25. Nd6 {[%clk 0:01:20]}  Bxd6 {[%clk 0:01:52]} 26. Rxd6 {[%clk 0:01:21]}  Qe7 {[%clk 0:01:43]} 27. Rd1 {[%clk 0:01:11]}  Bc4 {[%clk 0:01:42]} 28. Bd4 {[%clk 0:01:08]}  Bd3 {[%clk 0:01:40]} 29. Bxd3 {[%clk 0:01:05]}  Nxd3 {[%clk 0:01:37]} 30. Qe2 {[%clk 0:00:55]}  Nf4 {[%clk 0:01:35]} 31. Qe1 {[%clk 0:00:47]}  N6d5 {[%clk 0:01:34]} 32. Ng4 {[%clk 0:00:40]}  Re8 {[%clk 0:01:31]} 33. Qf1 {[%clk 0:00:32]}  Qg5 {[%clk 0:01:29]} 34. Kh2 {[%clk 0:00:28]}  Nd3 {[%clk 0:01:20]} 35. g3 {[%clk 0:00:20]}  Re6 {[%clk 0:01:13]} 36. Ne3 {[%clk 0:00:20]}  Nxb2 {[%clk 0:01:08]} 37. Nxd5 {[%clk 0:00:16]}  Qxd5 {[%clk 0:01:01]} 38. c4 {[%clk 0:00:16]}  Nxc4 {[%clk 0:00:52]} 39. Bxg7 {[%clk 0:00:16]}  Qc6 {[%clk 0:00:49]} 40. Ba1 {[%clk 0:00:16]}  Ne5 {[%clk 0:00:47]} 41. Qe2 {[%clk 0:00:16]}  Nf3+ {[%clk 0:00:42]} 42. Kg2 {[%clk 0:00:16]}  Kh7 {[%clk 0:00:37]} 43. Qe3 {[%clk 0:00:16]}  Qxa4 {[%clk 0:00:26]} 44. Qc3 {[%clk 0:00:13]}  Re5 {[%clk 0:00:16]} 45. Rd8 {[%clk 0:00:11]}  Qb5 {[%clk 0:00:10]} 46. Qc7 {[%clk 0:00:08]}  Rf5 {[%clk 0:00:08]} 47. Rh8+ {[%clk 0:00:07]}  Kg6 {[%clk 0:00:08]} 48. Qd6+ {[%clk 0:00:07]}  f6 {[%clk 0:00:08]} 49. Rg8+ {[%clk 0:00:07]}  Kh7 {[%clk 0:00:07]} 50. Qf8 {[%clk 0:00:04]}  Ne1+ {[%clk 0:00:07]} 51. Kg1 {[%clk 0:00:04]}  Nf3+ {[%clk 0:00:07]} 52. Kg2 {[%clk 0:00:05]}  Ne1+ {[%clk 0:00:05]} 53. Kg1 {[%clk 0:00:05]}  Nf3+ {[%clk 0:00:03]} 54. Kg2 {[%clk 0:00:06]} 1/2-1/2


[Site "https://www.chess.com"]

[Event "Titled Tuesday Blitz March 21 Late 2023"]
[White "Tregubov, Pavel V."]
[Black "Deac, Bogdan-Daniel"]
[WhiteFideId "4115341"]
[BlackFideId "1226380"]
[WhiteElo "2425"]
[BlackElo "2649"]
[Result "1-0"]
[Round "04"]
[TimeControl "180+2"]
[Date "2023.03.21"]
[WhiteClock "0:00:06"]
[BlackClock "0:00:03"]

1. e4 {[%clk 0:03:00]}  c6 {[%clk 0:02:59]} 2. Nf3 {[%clk 0:03:00]}  d5 {[%clk 0:03:00]} 3. Nc3 {[%clk 0:03:00]}  dxe4 {[%clk 0:02:59]} 4. Nxe4 {[%clk 0:03:00]}  Nf6 {[%clk 0:03:00]} 5. Qe2 {[%clk 0:03:01]}  Na6 {[%clk 0:02:59]} 6. Nxf6+ {[%clk 0:02:58]}  gxf6 {[%clk 0:02:59]} 7. d4 {[%clk 0:02:58]}  Qd5 {[%clk 0:02:59]} 8. h3 {[%clk 0:02:42]}  Bf5 {[%clk 0:02:52]} 9. c3 {[%clk 0:02:39]}  O-O-O {[%clk 0:02:41]} 10. Nh4 {[%clk 0:01:59]}  Bd7 {[%clk 0:02:22]} 11. Qf3 {[%clk 0:01:59]}  Nc7 {[%clk 0:02:15]} 12. Bd3 {[%clk 0:01:54]}  Qxf3 {[%clk 0:01:30]} 13. Nxf3 {[%clk 0:01:52]}  Rg8 {[%clk 0:01:30]} 14. Rg1 {[%clk 0:01:27]}  h5 {[%clk 0:01:29]} 15. Bd2 {[%clk 0:01:23]}  e5 {[%clk 0:01:26]} 16. O-O-O {[%clk 0:01:18]}  Re8 {[%clk 0:01:24]} 17. Rde1 {[%clk 0:01:14]}  Bd6 {[%clk 0:01:24]} 18. dxe5 {[%clk 0:01:10]}  fxe5 {[%clk 0:01:23]} 19. Nh4 {[%clk 0:01:04]}  Bc5 {[%clk 0:01:11]} 20. Rgf1 {[%clk 0:00:55]}  Nd5 {[%clk 0:01:01]} 21. Bh7 {[%clk 0:00:37]}  Rg7 {[%clk 0:00:58]} 22. Be4 {[%clk 0:00:37]}  Nf6 {[%clk 0:00:53]} 23. Bc2 {[%clk 0:00:33]}  Rgg8 {[%clk 0:00:42]} 24. Be3 {[%clk 0:00:31]}  Be7 {[%clk 0:00:27]} 25. c4 {[%clk 0:00:24]}  b6 {[%clk 0:00:20]} 26. Rg1 {[%clk 0:00:19]}  Be6 {[%clk 0:00:17]} 27. b3 {[%clk 0:00:18]}  e4 {[%clk 0:00:18]} 28. Bd4 {[%clk 0:00:17]}  Nd7 {[%clk 0:00:09]} 29. Rxe4 {[%clk 0:00:16]}  Bxh3 {[%clk 0:00:05]} 30. Rge1 {[%clk 0:00:14]}  Be6 {[%clk 0:00:05]} 31. g3 {[%clk 0:00:11]}  Kd8 {[%clk 0:00:04]} 32. R4e2 {[%clk 0:00:09]}  Nf6 {[%clk 0:00:04]} 33. Nf5 {[%clk 0:00:09]}  Ng4 {[%clk 0:00:03]} 34. Nxe7 {[%clk 0:00:08]}  Kxe7 {[%clk 0:00:04]} 35. f3 {[%clk 0:00:07]}  Nf6 {[%clk 0:00:04]} 36. f4 {[%clk 0:00:07]}  c5 {[%clk 0:00:02]} 37. Bc3 {[%clk 0:00:07]}  Rxg3 {[%clk 0:00:02]} 38. Bb2 {[%clk 0:00:06]}  Ng4 {[%clk 0:00:02]} 39. f5 {[%clk 0:00:06]}  h4 {[%clk 0:00:03]} 40. fxe6 {[%clk 0:00:06]}  f6 {[%clk 0:00:04]} 41. Rd1 {[%clk 0:00:06]}  Rd8 {[%clk 0:00:03]} 42. Rxd8 {[%clk 0:00:05]}  Kxd8 {[%clk 0:00:03]} 43. e7+ {[%clk 0:00:06]} 1-0


[Site "https://www.chess.com"]

[Event "Titled Tuesday Blitz March 21 Late 2023"]
[White "Alekseenko, Kirill"]
[Black "Panesso Rivera, Henry"]
[WhiteFideId "4135539"]
[BlackFideId "4402707"]
[WhiteElo "2683"]
[BlackElo "2345"]
[Result "1-0"]
[Round "04"]
[TimeControl "180+2"]
[Date "2023.03.21"]
[WhiteClock "0:00:19"]
[BlackClock "0:00:03"]

1. d4 {[%clk 0:03:00]}  Nf6 {[%clk 0:02:53]} 2. Nc3 {[%clk 0:03:00]}  d6 {[%clk 0:02:52]} 3. e4 {[%clk 0:02:59]}  g6 {[%clk 0:02:52]} 4. f4 {[%clk 0:02:58]}  Bg7 {[%clk 0:02:52]} 5. Nf3 {[%clk 0:02:59]}  O-O {[%clk 0:02:53]} 6. Bd3 {[%clk 0:02:58]}  Na6 {[%clk 0:02:52]} 7. O-O {[%clk 0:02:58]}  c5 {[%clk 0:02:52]} 8. d5 {[%clk 0:02:58]}  Bg4 {[%clk 0:02:53]} 9. Qe1 {[%clk 0:02:56]}  Nb4 {[%clk 0:02:46]} 10. a3 {[%clk 0:02:48]}  Nxd3 {[%clk 0:02:46]} 11. cxd3 {[%clk 0:02:49]}  Qb6 {[%clk 0:02:44]} 12. Kh1 {[%clk 0:02:48]}  Bxf3 {[%clk 0:02:43]} 13. Rxf3 {[%clk 0:02:48]}  Rac8 {[%clk 0:02:27]} 14. f5 {[%clk 0:02:24]}  c4 {[%clk 0:02:13]} 15. d4 {[%clk 0:02:20]}  Nd7 {[%clk 0:02:06]} 16. Be3 {[%clk 0:02:16]}  Qxb2 {[%clk 0:00:39]} 17. Rb1 {[%clk 0:02:16]}  Qxa3 {[%clk 0:00:40]} 18. Rxb7 {[%clk 0:02:17]}  Rcd8 {[%clk 0:00:40]} 19. Bg1 {[%clk 0:02:12]}  Qa5 {[%clk 0:00:39]} 20. Qh4 {[%clk 0:02:05]}  Bf6 {[%clk 0:00:31]} 21. Qf4 {[%clk 0:02:05]}  Qa6 {[%clk 0:00:22]} 22. Rb2 {[%clk 0:01:54]}  Rb8 {[%clk 0:00:23]} 23. Ra2 {[%clk 0:01:54]}  Qb7 {[%clk 0:00:19]} 24. Rh3 {[%clk 0:01:51]}  Bg7 {[%clk 0:00:18]} 25. Qh4 {[%clk 0:01:46]}  h6 {[%clk 0:00:17]} 26. Qxe7 {[%clk 0:01:21]}  Rfe8 {[%clk 0:00:10]} 27. Qxd6 {[%clk 0:01:20]}  gxf5 {[%clk 0:00:10]} 28. Rg3 {[%clk 0:01:19]}  Kh8 {[%clk 0:00:08]} 29. e5 {[%clk 0:01:15]}  Nf8 {[%clk 0:00:07]} 30. h3 {[%clk 0:00:56]}  Red8 {[%clk 0:00:08]} 31. Qa6 {[%clk 0:00:56]}  Qxa6 {[%clk 0:00:07]} 32. Rxa6 {[%clk 0:00:57]}  Rb3 {[%clk 0:00:07]} 33. Rxa7 {[%clk 0:00:55]}  Ng6 {[%clk 0:00:08]} 34. Rxf7 {[%clk 0:00:54]}  Kh7 {[%clk 0:00:07]} 35. d6 {[%clk 0:00:50]}  f4 {[%clk 0:00:07]} 36. Rf3 {[%clk 0:00:50]}  Nh4 {[%clk 0:00:06]} 37. R3xf4 {[%clk 0:00:46]}  Rxc3 {[%clk 0:00:06]} 38. Rxh4 {[%clk 0:00:46]}  Kg6 {[%clk 0:00:06]} 39. e6 {[%clk 0:00:44]}  Bf6 {[%clk 0:00:05]} 40. Rg4+ {[%clk 0:00:31]}  Bg5 {[%clk 0:00:06]} 41. e7 {[%clk 0:00:30]}  Kxf7 {[%clk 0:00:02]} 42. exd8=Q {[%clk 0:00:20]}  Bxd8 {[%clk 0:00:02]} 43. d5 {[%clk 0:00:20]}  Ke8 {[%clk 0:00:03]} 44. Rg7 {[%clk 0:00:19]}  Rc1 {[%clk 0:00:03]} 45. Kh2 {[%clk 0:00:18]}  Bf6 {[%clk 0:00:03]} 46. d7+ {[%clk 0:00:18]}  Kd8 {[%clk 0:00:03]} 47. Bb6# {[%clk 0:00:19]} 1-0


[Site "https://www.chess.com"]

[Event "Titled Tuesday Blitz March 21 Late 2023"]
[White "Kakabayev, Mergen"]
[Black "Makhnev, Denis"]
[WhiteFideId "14002990"]
[BlackFideId "13707647"]
[WhiteElo "2259"]
[BlackElo "2525"]
[Result "0-1"]
[Round "04"]
[TimeControl "180+2"]
[Date "2023.03.21"]
[WhiteClock "0:00:13"]
[BlackClock "0:00:08"]

1. e4 {[%clk 0:03:00]}  e5 {[%clk 0:02:59]} 2. Nc3 {[%clk 0:03:00]}  Nf6 {[%clk 0:02:58]} 3. Bc4 {[%clk 0:03:00]}  Bb4 {[%clk 0:02:56]} 4. Nge2 {[%clk 0:02:59]}  c6 {[%clk 0:02:57]} 5. O-O {[%clk 0:02:59]}  O-O {[%clk 0:02:55]} 6. d4 {[%clk 0:02:59]}  d6 {[%clk 0:02:34]} 7. a3 {[%clk 0:02:57]}  Ba5 {[%clk 0:02:33]} 8. h3 {[%clk 0:02:56]}  h6 {[%clk 0:02:33]} 9. Ng3 {[%clk 0:02:54]}  Re8 {[%clk 0:02:28]} 10. b4 {[%clk 0:02:32]}  Bb6 {[%clk 0:02:26]} 11. d5 {[%clk 0:02:32]}  Bd4 {[%clk 0:02:19]} 12. Bb2 {[%clk 0:02:16]}  cxd5 {[%clk 0:02:18]} 13. exd5 {[%clk 0:02:16]}  Nbd7 {[%clk 0:02:09]} 14. Bb3 {[%clk 0:02:13]}  Nf8 {[%clk 0:01:59]} 15. Nge2 {[%clk 0:02:10]}  Bb6 {[%clk 0:01:58]} 16. Kh2 {[%clk 0:02:00]}  Ng6 {[%clk 0:01:56]} 17. Ng3 {[%clk 0:01:41]}  Nf4 {[%clk 0:01:34]} 18. Nce4 {[%clk 0:01:37]}  Nxe4 {[%clk 0:01:14]} 19. Nxe4 {[%clk 0:01:37]}  Bf5 {[%clk 0:01:14]} 20. Qf3 {[%clk 0:01:33]}  Bh7 {[%clk 0:01:14]} 21. c4 {[%clk 0:01:29]}  f5 {[%clk 0:01:13]} 22. Ng3 {[%clk 0:01:28]}  Qh4 {[%clk 0:01:09]} 23. Bc1 {[%clk 0:01:16]}  Bd4 {[%clk 0:00:54]} 24. Ra2 {[%clk 0:01:15]}  a5 {[%clk 0:00:54]} 25. Bxf4 {[%clk 0:01:13]}  exf4 {[%clk 0:00:45]} 26. Ne2 {[%clk 0:01:13]}  Be5 {[%clk 0:00:46]} 27. Kg1 {[%clk 0:01:08]}  Bg6 {[%clk 0:00:44]} 28. Qd3 {[%clk 0:00:42]}  Bh5 {[%clk 0:00:44]} 29. f3 {[%clk 0:00:41]}  Qf6 {[%clk 0:00:41]} 30. c5 {[%clk 0:00:38]}  Bf7 {[%clk 0:00:40]} 31. Rd1 {[%clk 0:00:32]}  axb4 {[%clk 0:00:36]} 32. axb4 {[%clk 0:00:32]}  Rxa2 {[%clk 0:00:37]} 33. Bxa2 {[%clk 0:00:33]}  Ra8 {[%clk 0:00:38]} 34. Bc4 {[%clk 0:00:33]}  g6 {[%clk 0:00:34]} 35. c6 {[%clk 0:00:33]}  Qd8 {[%clk 0:00:32]} 36. b5 {[%clk 0:00:32]}  Qb6+ {[%clk 0:00:32]} 37. Kh2 {[%clk 0:00:32]}  Qc5 {[%clk 0:00:25]} 38. Nd4 {[%clk 0:00:22]}  bxc6 {[%clk 0:00:19]} 39. Nxc6 {[%clk 0:00:20]}  Ra3 {[%clk 0:00:19]} 40. Qe2 {[%clk 0:00:17]}  Bf6 {[%clk 0:00:18]} 41. Rb1 {[%clk 0:00:14]}  Qb6 {[%clk 0:00:18]} 42. Qf1 {[%clk 0:00:13]}  Kg7 {[%clk 0:00:18]} 43. Qg1 {[%clk 0:00:14]}  Qb7 {[%clk 0:00:12]} 44. b6 {[%clk 0:00:14]}  h5 {[%clk 0:00:10]} 45. Qd1 {[%clk 0:00:14]}  h4 {[%clk 0:00:09]} 46. Qc1 {[%clk 0:00:14]}  Ra4 {[%clk 0:00:08]} 47. Qc2 {[%clk 0:00:14]}  Ra3 {[%clk 0:00:08]} 48. Qd2 {[%clk 0:00:14]}  Rc3 {[%clk 0:00:07]} 49. Bf1 {[%clk 0:00:14]}  Ra3 {[%clk 0:00:06]} 50. Qxf4 {[%clk 0:00:14]}  Bxd5 {[%clk 0:00:06]} 51. Qxd6 {[%clk 0:00:11]}  Bxc6 {[%clk 0:00:06]} 52. Qc7+ {[%clk 0:00:11]}  Qxc7+ {[%clk 0:00:07]} 53. bxc7 {[%clk 0:00:11]}  Be5+ {[%clk 0:00:06]} 54. Kh1 {[%clk 0:00:12]}  Bxc7 {[%clk 0:00:05]} 55. Rc1 {[%clk 0:00:12]}  Bf4 {[%clk 0:00:05]} 56. Rxc6 {[%clk 0:00:12]}  Ra1 {[%clk 0:00:06]} 57. Kg1 {[%clk 0:00:12]}  Be3+ {[%clk 0:00:06]} 58. Kh2 {[%clk 0:00:13]}  Rxf1 {[%clk 0:00:07]} 59. g3 {[%clk 0:00:13]}  Rf2+ {[%clk 0:00:07]} 60. Kh1 {[%clk 0:00:13]}  hxg3 {[%clk 0:00:08]} 0-1


[Site "https://www.chess.com"]

[Event "Titled Tuesday Blitz March 21 Late 2023"]
[White "Drygalov, Sergey"]
[Black "Alex_Sahakyan2006"]
[WhiteFideId "24171743"]
[WhiteElo "2533"]
[BlackElo "2627"]
[Result "1-0"]
[Round "04"]
[TimeControl "180+2"]
[Date "2023.03.21"]
[WhiteClock "0:00:59"]
[BlackClock "0:00:05"]

1. d4 {[%clk 0:03:00]}  Nf6 {[%clk 0:03:00]} 2. c4 {[%clk 0:03:01]}  c5 {[%clk 0:03:00]} 3. d5 {[%clk 0:03:01]}  b5 {[%clk 0:03:01]} 4. cxb5 {[%clk 0:03:02]}  a6 {[%clk 0:03:01]} 5. bxa6 {[%clk 0:03:02]}  g6 {[%clk 0:03:00]} 6. Nc3 {[%clk 0:03:03]}  Bg7 {[%clk 0:03:01]} 7. e4 {[%clk 0:03:03]}  O-O {[%clk 0:03:01]} 8. Nf3 {[%clk 0:03:02]}  Qa5 {[%clk 0:02:57]} 9. Bd2 {[%clk 0:03:02]}  Bxa6 {[%clk 0:02:57]} 10. Be2 {[%clk 0:03:03]}  d6 {[%clk 0:02:48]} 11. O-O {[%clk 0:02:55]}  Bxe2 {[%clk 0:02:45]} 12. Qxe2 {[%clk 0:02:55]}  Qa6 {[%clk 0:02:46]} 13. Rfe1 {[%clk 0:02:41]}  Qxe2 {[%clk 0:02:44]} 14. Rxe2 {[%clk 0:02:41]}  Nfd7 {[%clk 0:02:44]} 15. Bg5 {[%clk 0:02:35]}  Re8 {[%clk 0:02:41]} 16. a4 {[%clk 0:02:32]}  Na6 {[%clk 0:02:41]} 17. Nb5 {[%clk 0:02:32]}  h6 {[%clk 0:02:36]} 18. Bf4 {[%clk 0:02:23]}  g5 {[%clk 0:02:36]} 19. Bg3 {[%clk 0:02:23]}  Reb8 {[%clk 0:02:22]} 20. h3 {[%clk 0:02:17]}  Nb4 {[%clk 0:02:20]} 21. Ra3 {[%clk 0:02:00]}  Nb6 {[%clk 0:02:10]} 22. e5 {[%clk 0:01:59]}  N4xd5 {[%clk 0:01:39]} 23. exd6 {[%clk 0:01:57]}  exd6 {[%clk 0:01:40]} 24. Bxd6 {[%clk 0:01:54]}  Rc8 {[%clk 0:01:41]} 25. b3 {[%clk 0:01:47]}  c4 {[%clk 0:01:33]} 26. a5 {[%clk 0:01:47]}  Nd7 {[%clk 0:01:06]} 27. bxc4 {[%clk 0:01:47]}  Rxc4 {[%clk 0:01:05]} 28. a6 {[%clk 0:01:47]}  Bf8 {[%clk 0:00:53]} 29. Bxf8 {[%clk 0:01:33]}  Kxf8 {[%clk 0:00:54]} 30. a7 {[%clk 0:01:31]}  N7b6 {[%clk 0:00:35]} 31. Nfd4 {[%clk 0:01:25]}  Rc5 {[%clk 0:00:20]} 32. g3 {[%clk 0:01:22]}  h5 {[%clk 0:00:20]} 33. Re5 {[%clk 0:01:17]}  g4 {[%clk 0:00:10]} 34. Rxh5 {[%clk 0:01:13]}  gxh3 {[%clk 0:00:11]} 35. Rxh3 {[%clk 0:01:10]}  Ke7 {[%clk 0:00:11]} 36. Rh6 {[%clk 0:01:08]}  Nc4 {[%clk 0:00:07]} 37. Ra1 {[%clk 0:00:59]}  f6 {[%clk 0:00:05]} 38. Rh7+ {[%clk 0:00:59]} 1-0


[Site "https://www.chess.com"]

[Event "Titled Tuesday Blitz March 21 Late 2023"]
[White "Mustafayev, Farid"]
[Black "Perez Ponsa, Federico"]
[WhiteFideId "13408771"]
[BlackFideId "117927"]
[WhiteElo "2269"]
[BlackElo "2592"]
[Result "1-0"]
[Round "04"]
[TimeControl "180+2"]
[Date "2023.03.21"]
[WhiteClock "0:01:16"]
[BlackClock "0:01:06"]

1. Nf3 {[%clk 0:02:59]}  Nf6 {[%clk 0:02:51]} 2. g3 {[%clk 0:03:00]}  g6 {[%clk 0:02:51]} 3. Bg2 {[%clk 0:03:00]}  Bg7 {[%clk 0:02:52]} 4. O-O {[%clk 0:03:01]}  O-O {[%clk 0:02:53]} 5. c4 {[%clk 0:03:01]}  d6 {[%clk 0:02:53]} 6. Nc3 {[%clk 0:03:02]}  Nc6 {[%clk 0:02:54]} 7. b3 {[%clk 0:03:02]}  e5 {[%clk 0:02:54]} 8. Bb2 {[%clk 0:03:01]}  Re8 {[%clk 0:02:55]} 9. d3 {[%clk 0:03:01]}  e4 {[%clk 0:02:53]} 10. Ng5 {[%clk 0:02:46]}  e3 {[%clk 0:02:48]} 11. fxe3 {[%clk 0:02:45]}  Ng4 {[%clk 0:02:44]} 12. Nxf7 {[%clk 0:02:41]}  Qd7 {[%clk 0:02:38]} 13. Bd5 {[%clk 0:02:28]}  Nxe3 {[%clk 0:02:24]} 14. Ne5+ {[%clk 0:02:06]}  Kh8 {[%clk 0:02:10]} 15. Nxd7 {[%clk 0:02:06]}  Nxd1 {[%clk 0:02:10]} 16. Raxd1 {[%clk 0:02:06]}  Bxd7 {[%clk 0:02:09]} 17. Rf7 {[%clk 0:02:03]}  Bd4+ {[%clk 0:02:01]} 18. Kh1 {[%clk 0:01:54]}  Ne5 {[%clk 0:02:01]} 19. Rf4 {[%clk 0:01:49]}  Be3 {[%clk 0:02:01]} 20. Rff1 {[%clk 0:01:44]}  c6 {[%clk 0:01:59]} 21. Bg2 {[%clk 0:01:44]}  Bd4 {[%clk 0:01:56]} 22. h3 {[%clk 0:01:42]}  Rf8 {[%clk 0:01:54]} 23. Rf4 {[%clk 0:01:37]}  Be3 {[%clk 0:01:39]} 24. Ne4 {[%clk 0:01:29]}  Rxf4 {[%clk 0:01:14]} 25. gxf4 {[%clk 0:01:29]}  Bxf4 {[%clk 0:01:15]} 26. e3 {[%clk 0:01:18]}  Bh6 {[%clk 0:01:06]} 27. Nxd6 {[%clk 0:01:17]}  Bg7 {[%clk 0:01:06]} 28. Bxe5 {[%clk 0:01:16]} 1-0


[Site "https://www.chess.com"]

[Event "Titled Tuesday Blitz March 21 Late 2023"]
[White "Lamard, Guillaume"]
[Black "Idani, Pouya"]
[WhiteFideId "600261"]
[BlackFideId "12510130"]
[WhiteElo "2413"]
[BlackElo "2574"]
[Result "0-1"]
[Round "04"]
[TimeControl "180+2"]
[Date "2023.03.21"]
[WhiteClock "0:00:38"]
[BlackClock "0:00:33"]

1. d4 {[%clk 0:03:00]}  Nf6 {[%clk 0:02:57]} 2. Bf4 {[%clk 0:03:00]}  g6 {[%clk 0:02:51]} 3. Nc3 {[%clk 0:03:00]}  d5 {[%clk 0:02:51]} 4. e3 {[%clk 0:03:00]}  Bg7 {[%clk 0:02:50]} 5. Nb5 {[%clk 0:02:58]}  Na6 {[%clk 0:02:50]} 6. Nf3 {[%clk 0:02:57]}  O-O {[%clk 0:02:46]} 7. h3 {[%clk 0:02:52]}  c6 {[%clk 0:02:45]} 8. Nc3 {[%clk 0:02:52]}  Qb6 {[%clk 0:02:46]} 9. Rb1 {[%clk 0:02:48]}  c5 {[%clk 0:02:35]} 10. Bxa6 {[%clk 0:02:34]}  bxa6 {[%clk 0:02:28]} 11. O-O {[%clk 0:02:28]}  Bd7 {[%clk 0:02:24]} 12. dxc5 {[%clk 0:02:12]}  Qxc5 {[%clk 0:02:25]} 13. Qd4 {[%clk 0:02:09]}  Rac8 {[%clk 0:02:10]} 14. Rfd1 {[%clk 0:02:03]}  Qxd4 {[%clk 0:01:56]} 15. Nxd4 {[%clk 0:01:57]}  Rfe8 {[%clk 0:01:47]} 16. Be5 {[%clk 0:01:57]}  e6 {[%clk 0:01:46]} 17. Rbc1 {[%clk 0:01:51]}  Ne4 {[%clk 0:01:28]} 18. Nxe4 {[%clk 0:01:35]}  Bxe5 {[%clk 0:01:25]} 19. Nd2 {[%clk 0:01:18]}  Rc7 {[%clk 0:01:20]} 20. N2b3 {[%clk 0:01:15]}  Rec8 {[%clk 0:01:18]} 21. c3 {[%clk 0:01:16]}  Ba4 {[%clk 0:01:10]} 22. Rd2 {[%clk 0:01:14]}  Bf6 {[%clk 0:01:06]} 23. Re1 {[%clk 0:01:10]}  e5 {[%clk 0:01:01]} 24. Nc2 {[%clk 0:01:08]}  Bc6 {[%clk 0:00:51]} 25. Nb4 {[%clk 0:01:04]}  d4 {[%clk 0:00:49]} 26. exd4 {[%clk 0:00:59]}  exd4 {[%clk 0:00:50]} 27. Nxc6 {[%clk 0:00:51]}  dxc3 {[%clk 0:00:44]} 28. bxc3 {[%clk 0:00:44]}  Rxc6 {[%clk 0:00:34]} 29. Rd7 {[%clk 0:00:38]}  R6c7 {[%clk 0:00:35]} 30. Re8+ {[%clk 0:00:38]}  Rxe8 {[%clk 0:00:31]} 31. Rxc7 {[%clk 0:00:38]}  Re1+ {[%clk 0:00:32]} 32. Kh2 {[%clk 0:00:38]}  Be5+ {[%clk 0:00:33]} 0-1


[Site "https://www.chess.com"]